[Event "*** MasterClass Titled Tuesday Blitz"]
[Site "Chess.com"]
[Date "2017.09.05"]
[Round "1"]
[White "jcibarra"]
[Black "Ilja_Semjonovs"]
[Result "1-0"]
[WhiteElo "2656"]
[BlackElo "2354"]
[TimeControl "180+2"]
[EndTime "13:02:37 PDT"]
[Termination "jcibarra won by resignation"]

1. e4 {[%clk 0:02:58.7]} 1... c5 {[%clk 0:02:57.8]} 2. Nf3 {[%clk 0:02:59.3]}
2... d6 {[%clk 0:02:58]} 3. d4 {[%clk 0:03:00.2]} 3... cxd4 {[%clk 0:02:59.1]}
4. Nxd4 {[%clk 0:03:02.1]} 4... Nf6 {[%clk 0:03:00.2]} 5. Nc3 {[%clk 0:03:03.4]}
5... a6 {[%clk 0:03:01.5]} 6. Be3 {[%clk 0:03:03.5]} 6... e5 {[%clk 0:03:02.2]}
7. Nf3 {[%clk 0:03:03.9]} 7... Be7 {[%clk 0:02:57.4]} 8. Bc4 {[%clk 0:03:03.8]}
8... Be6 {[%clk 0:02:58.3]} 9. Bxe6 {[%clk 0:03:04.2]} 9... fxe6 {[%clk
0:02:59.5]} 10. Ng5 {[%clk 0:03:06.1]} 10... Qd7 {[%clk 0:02:56.7]} 11. Qf3
{[%clk 0:03:07.1]} 11... Nc6 {[%clk 0:02:42.1]} 12. O-O-O {[%clk 0:03:03.2]}
12... h6 {[%clk 0:02:37.1]} 13. Qh3 {[%clk 0:03:04.2]} 13... O-O-O {[%clk
0:02:17.2]} 14. Nf7 {[%clk 0:02:53.7]} 14... b5 {[%clk 0:02:12.4]} 15. Nxh8
{[%clk 0:02:52.1]} 15... Rxh8 {[%clk 0:02:12.4]} 16. a3 {[%clk 0:02:50.4]} 16...
Na5 {[%clk 0:02:11.8]} 17. f4 {[%clk 0:02:47.8]} 17... exf4 {[%clk 0:02:08.1]}
18. Bxf4 {[%clk 0:02:46.9]} 18... Qc6 {[%clk 0:02:09.4]} 19. Qxe6+ {[%clk
0:02:46.5]} 1-0

[Event "*** MasterClass Titled Tuesday Blitz"]
[Site "Chess.com"]
[Date "2017.09.05"]
[Round "1"]
[White "joppie2"]
[Black "BIG_Pirate"]
[Result "0-1"]
[WhiteElo "2581"]
[BlackElo "2331"]
[TimeControl "180+2"]
[EndTime "13:03:44 PDT"]
[Termination "BIG_Pirate won by resignation"]

1. d4 {[%clk 0:02:55.1]} 1... d5 {[%clk 0:03:01]} 2. c4 {[%clk 0:02:56.5]} 2...
c6 {[%clk 0:03:02.3]} 3. Nf3 {[%clk 0:02:58.1]} 3... Nf6 {[%clk 0:03:03.5]} 4.
Nbd2 {[%clk 0:02:59.7]} 4... e6 {[%clk 0:03:03.8]} 5. e3 {[%clk 0:02:59]} 5...
c5 {[%clk 0:03:04]} 6. cxd5 {[%clk 0:02:50.9]} 6... Nxd5 {[%clk 0:03:04.3]} 7.
Be2 {[%clk 0:02:41.6]} 7... Nc6 {[%clk 0:03:04.7]} 8. dxc5 {[%clk 0:02:37.9]}
8... Bxc5 {[%clk 0:03:04.8]} 9. O-O {[%clk 0:02:39.5]} 9... O-O {[%clk
0:03:05.7]} 10. a3 {[%clk 0:02:34.8]} 10... Be7 {[%clk 0:03:05.5]} 11. Ne4
{[%clk 0:02:33.9]} 11... b6 {[%clk 0:02:56.1]} 12. Bd2 {[%clk 0:02:33.4]} 12...
Bb7 {[%clk 0:02:56.8]} 13. Rc1 {[%clk 0:02:32.1]} 13... Nf6 {[%clk 0:02:48.5]}
14. Ng3 {[%clk 0:02:28.8]} 14... Rc8 {[%clk 0:02:43]} 15. Qa4 {[%clk 0:02:29.7]}
15... a6 {[%clk 0:01:31.5]} 16. Rfd1 {[%clk 0:02:25.4]} 16... b5 {[%clk
0:01:31.9]} 17. Qg4 {[%clk 0:02:26.2]} 17... Nxg4 {[%clk 0:01:32]} 0-1

[Event "*** MasterClass Titled Tuesday Blitz"]
[Site "Chess.com"]
[Date "2017.09.05"]
[Round "1"]
[White "swayamsm"]
[Black "Me_ch_an"]
[Result "1-0"]
[WhiteElo "2500"]
[BlackElo "2203"]
[TimeControl "180+2"]
[EndTime "13:05:08 PDT"]
[Termination "swayamsm won by resignation"]

1. d4 {[%clk 0:03:01.9]} 1... d5 {[%clk 0:02:54.1]} 2. c4 {[%clk 0:03:00.4]}
2... dxc4 {[%clk 0:02:53.9]} 3. e3 {[%clk 0:02:59.1]} 3... e5 {[%clk 0:02:52.5]}
4. Bxc4 {[%clk 0:02:59.4]} 4... exd4 {[%clk 0:02:53.1]} 5. exd4 {[%clk
0:03:01.3]} 5... Nf6 {[%clk 0:02:53.7]} 6. Nf3 {[%clk 0:03:02.2]} 6... Bd6
{[%clk 0:02:54.3]} 7. O-O {[%clk 0:03:01.5]} 7... O-O {[%clk 0:02:54.7]} 8. h3
{[%clk 0:02:53.8]} 8... h6 {[%clk 0:02:54.3]} 9. Nc3 {[%clk 0:02:53.1]} 9... c6
{[%clk 0:02:55.1]} 10. Qc2 {[%clk 0:02:53.8]} 10... Nbd7 {[%clk 0:02:54.8]} 11.
Bxh6 {[%clk 0:02:40.5]} 11... gxh6 {[%clk 0:01:43.6]} 12. Qg6+ {[%clk
0:02:21.7]} 12... Kh8 {[%clk 0:01:43.5]} 13. Qxh6+ {[%clk 0:02:23.6]} 13... Nh7
{[%clk 0:01:43.1]} 14. Qxd6 {[%clk 0:02:23]} 14... Qf6 {[%clk 0:01:41.7]} 15.
Qxf6+ {[%clk 0:02:19.2]} 15... Ndxf6 {[%clk 0:01:41]} 16. Ne5 {[%clk 0:02:18.6]}
16... Kg7 {[%clk 0:01:41]} 17. f4 {[%clk 0:02:12.6]} 17... Be6 {[%clk
0:01:30.2]} 18. Bxe6 {[%clk 0:02:08.9]} 18... fxe6 {[%clk 0:01:32.1]} 19. Rad1
{[%clk 0:02:08.7]} 19... Rad8 {[%clk 0:01:28.9]} 20. g3 {[%clk 0:02:07.4]} 20...
Nd5 {[%clk 0:01:26.9]} 21. Rfe1 {[%clk 0:02:05.2]} 21... Nhf6 {[%clk 0:01:21.7]}
22. Nd3 {[%clk 0:02:03.2]} 22... Nxc3 {[%clk 0:01:15.6]} 23. bxc3 {[%clk
0:02:03.5]} 23... Rd6 {[%clk 0:01:15.1]} 24. Nc5 {[%clk 0:02:04.3]} 1-0

[Event "*** MasterClass Titled Tuesday Blitz"]
[Site "Chess.com"]
[Date "2017.09.05"]
[Round "1"]
[White "XDPS"]
[Black "MartinMatthiesen"]
[Result "1-0"]
[WhiteElo "2560"]
[BlackElo "2297"]
[TimeControl "180+2"]
[EndTime "13:05:23 PDT"]
[Termination "XDPS won by resignation"]

1. d4 {[%clk 0:02:56.1]} 1... Nf6 {[%clk 0:03:00.1]} 2. Bf4 {[%clk 0:02:55.2]}
2... d5 {[%clk 0:02:58.9]} 3. e3 {[%clk 0:02:56.1]} 3... c5 {[%clk 0:02:59.3]}
4. dxc5 {[%clk 0:02:55.8]} 4... Nc6 {[%clk 0:02:58.5]} 5. Bb5 {[%clk 0:02:50.7]}
5... e6 {[%clk 0:02:40.9]} 6. b4 {[%clk 0:02:49.8]} 6... a5 {[%clk 0:02:40.2]}
7. c3 {[%clk 0:02:49.6]} 7... Ne4 {[%clk 0:02:35]} 8. Ne2 {[%clk 0:02:41.6]}
8... Qf6 {[%clk 0:02:06.2]} 9. Qd4 {[%clk 0:02:40.8]} 9... Bd7 {[%clk
0:01:47.3]} 10. Qxf6 {[%clk 0:02:40.1]} 10... Nxf6 {[%clk 0:01:16.1]} 11. Bxc6
{[%clk 0:02:36.9]} 11... Bxc6 {[%clk 0:01:14.7]} 12. Nd2 {[%clk 0:02:31.8]}
12... Nd7 {[%clk 0:01:03.3]} 13. Nb3 {[%clk 0:02:13]} 13... e5 {[%clk
0:00:59.8]} 14. Bg3 {[%clk 0:02:13]} 14... axb4 {[%clk 0:00:41.9]} 15. cxb4
{[%clk 0:02:12.7]} 15... Ra3 {[%clk 0:00:42.3]} 16. O-O {[%clk 0:02:08.3]} 16...
Be7 {[%clk 0:00:36.4]} 17. Rfd1 {[%clk 0:02:05.1]} 17... O-O {[%clk 0:00:36.3]}
18. Nc3 {[%clk 0:02:05.9]} 18... Rfa8 {[%clk 0:00:29.3]} 19. b5 {[%clk
0:01:39.3]} 1-0

[Event "*** MasterClass Titled Tuesday Blitz"]
[Site "Chess.com"]
[Date "2017.09.05"]
[Round "1"]
[White "RitvarsReimanis"]
[Black "liquormark"]
[Result "1-0"]
[WhiteElo "2462"]
[BlackElo "2105"]
[TimeControl "180+2"]
[EndTime "13:05:36 PDT"]
[Termination "RitvarsReimanis won by resignation"]

1. d4 {[%clk 0:02:57.8]} 1... Nf6 {[%clk 0:02:58.8]} 2. c4 {[%clk 0:02:54.4]}
2... g6 {[%clk 0:03:00]} 3. f3 {[%clk 0:02:55.5]} 3... Bg7 {[%clk 0:03:00.4]} 4.
e4 {[%clk 0:02:56.9]} 4... d6 {[%clk 0:03:01.7]} 5. Ne2 {[%clk 0:02:56.7]} 5...
c6 {[%clk 0:03:00.7]} 6. Nec3 {[%clk 0:02:47.9]} 6... a6 {[%clk 0:02:59.4]} 7.
a4 {[%clk 0:02:49]} 7... a5 {[%clk 0:02:58.1]} 8. Be3 {[%clk 0:02:49.2]} 8...
Na6 {[%clk 0:02:57.9]} 9. Be2 {[%clk 0:02:50]} 9... Nb4 {[%clk 0:02:28.4]} 10.
O-O {[%clk 0:02:50]} 10... O-O {[%clk 0:02:28.8]} 11. Na3 {[%clk 0:02:50.3]}
11... Bd7 {[%clk 0:02:09.7]} 12. Qd2 {[%clk 0:02:50.4]} 12... Qc7 {[%clk
0:01:41.5]} 13. Rfd1 {[%clk 0:02:51.3]} 13... Rfd8 {[%clk 0:01:27.1]} 14. Rac1
{[%clk 0:02:51.8]} 14... e5 {[%clk 0:01:18.4]} 15. dxe5 {[%clk 0:02:35.6]} 15...
dxe5 {[%clk 0:01:15]} 16. Qe1 {[%clk 0:02:32.6]} 16... Be6 {[%clk 0:01:14.7]}
17. Qf2 {[%clk 0:02:28.8]} 17... Nd7 {[%clk 0:00:54]} 18. Nd5 {[%clk 0:02:19.3]}
18... cxd5 {[%clk 0:00:45.6]} 19. cxd5 {[%clk 0:02:19.9]} 19... Qd6 {[%clk
0:00:30.6]} 20. Nb5 {[%clk 0:02:20.5]} 20... Qe7 {[%clk 0:00:27.4]} 21. dxe6
{[%clk 0:02:21]} 21... fxe6 {[%clk 0:00:21.4]} 22. Bc4 {[%clk 0:02:16.4]} 22...
Nc6 {[%clk 0:00:20.6]} 23. Nc7 {[%clk 0:02:13.9]} 23... Rac8 {[%clk 0:00:21.4]}
24. Nxe6 {[%clk 0:02:13.1]} 24... Nb6 {[%clk 0:00:16.9]} 25. Bxb6 {[%clk
0:02:09.4]} 25... Rxd1+ {[%clk 0:00:15.9]} 26. Rxd1 {[%clk 0:02:11.3]} 1-0

[Event "*** MasterClass Titled Tuesday Blitz"]
[Site "Chess.com"]
[Date "2017.09.05"]
[Round "1"]
[White "Letinac"]
[Black "biostatistician"]
[Result "1/2-1/2"]
[WhiteElo "2087"]
[BlackElo "2442"]
[TimeControl "180+2"]
[EndTime "13:06:29 PDT"]
[Termination "Game drawn by agreement"]

1. Nf3 {[%clk 0:03:01.3]} 1... Nf6 {[%clk 0:02:59.3]} 2. g3 {[%clk 0:03:02.3]}
2... g6 {[%clk 0:03:00.4]} 3. Bg2 {[%clk 0:03:03.5]} 3... Bg7 {[%clk 0:03:02.3]}
4. O-O {[%clk 0:03:04.4]} 4... O-O {[%clk 0:03:04.2]} 5. c4 {[%clk 0:03:05.5]}
5... b6 {[%clk 0:03:05.7]} 6. Nc3 {[%clk 0:03:05.8]} 6... Bb7 {[%clk 0:03:06.2]}
7. d4 {[%clk 0:03:05]} 7... Ne4 {[%clk 0:03:07.6]} 8. Qc2 {[%clk 0:03:04.8]}
8... Nxc3 {[%clk 0:03:06.4]} 9. Qxc3 {[%clk 0:03:05.5]} 9... c5 {[%clk
0:03:06.4]} 10. Be3 {[%clk 0:03:04.9]} 10... Nc6 {[%clk 0:03:06.9]} 11. Qd2
{[%clk 0:02:59.5]} 11... Nxd4 {[%clk 0:03:03.3]} 12. Nxd4 {[%clk 0:02:59.5]}
12... Bxg2 {[%clk 0:03:05.2]} 13. Kxg2 {[%clk 0:02:59.8]} 13... cxd4 {[%clk
0:03:06.7]} 14. Bxd4 {[%clk 0:03:00.6]} 14... d6 {[%clk 0:03:04.1]} 15. Bxg7
{[%clk 0:03:00.1]} 15... Kxg7 {[%clk 0:03:06]} 16. Qd4+ {[%clk 0:03:00.8]} 16...
f6 {[%clk 0:03:06.9]} 17. Rfd1 {[%clk 0:03:00.6]} 17... Rc8 {[%clk 0:03:07.7]}
18. b3 {[%clk 0:03:00.8]} 18... Rc5 {[%clk 0:03:08.3]} 19. e4 {[%clk 0:03:00.9]}
19... Qc7 {[%clk 0:03:08.9]} 20. h4 {[%clk 0:03:00]} 20... Qc6 {[%clk
0:03:02.2]} 21. Kh2 {[%clk 0:02:57.1]} 21... Rc8 {[%clk 0:02:59.7]} 22. Rd2
{[%clk 0:02:57.2]} 22... Rc7 {[%clk 0:02:56]} 23. Rad1 {[%clk 0:02:55.7]} 23...
a6 {[%clk 0:02:54.5]} 24. a4 {[%clk 0:02:55.8]} 24... b5 {[%clk 0:02:54.6]} 25.
cxb5 {[%clk 0:02:56.2]} 25... axb5 {[%clk 0:02:56.5]} 26. axb5 {[%clk
0:02:46.4]} 26... Qxb5 {[%clk 0:02:58.4]} 27. Rd3 {[%clk 0:02:43.4]} 27... Rc2
{[%clk 0:02:57.3]} 28. Kg2 {[%clk 0:02:36.7]} 28... Qc5 {[%clk 0:02:47.2]} 29.
Qxc5 {[%clk 0:02:35.6]} 29... R7xc5 {[%clk 0:02:49.1]} 30. R1d2 {[%clk
0:02:35.2]} 30... Rc1 {[%clk 0:02:37.6]} 31. Rb2 {[%clk 0:02:32.2]} 31... Rb5
{[%clk 0:02:38.2]} 32. Kf3 {[%clk 0:02:29]} 32... Kf7 {[%clk 0:02:39.1]} 33. Ke3
{[%clk 0:02:28]} 33... Ke6 {[%clk 0:02:38]} 34. Kd2 {[%clk 0:02:28.1]} 34... Rf1
{[%clk 0:02:37.3]} 35. Ke2 {[%clk 0:02:28.4]} 35... Ra1 {[%clk 0:02:36]} 36. Rc3
{[%clk 0:02:27.6]} 36... Rb4 {[%clk 0:02:32.9]} 37. f3 {[%clk 0:02:27.5]} 37...
Rh1 {[%clk 0:02:32.2]} 38. Ke3 {[%clk 0:02:25.9]} 38... Rh3 {[%clk 0:02:30.2]}
39. Rg2 {[%clk 0:02:22]} 39... Rh1 {[%clk 0:02:29.1]} 40. Rd3 {[%clk 0:02:17.8]}
40... Rb1 {[%clk 0:02:28.9]} 41. Ra2 {[%clk 0:02:08.6]} 41... R1xb3 {[%clk
0:02:29]} 42. Rxb3 {[%clk 0:02:09.3]} 42... Rxb3+ {[%clk 0:02:30.9]} 43. Kf2
{[%clk 0:02:10.8]} 43... h5 {[%clk 0:02:24.7]} 44. Ra7 {[%clk 0:02:09.7]} 44...
Rb2+ {[%clk 0:02:25.4]} 45. Ke3 {[%clk 0:02:08.3]} 45... Rg2 {[%clk 0:02:26.2]}
46. Kf4 {[%clk 0:02:08.4]} 46... g5+ {[%clk 0:02:19.4]} 47. hxg5 {[%clk
0:02:08.4]} 47... fxg5+ {[%clk 0:02:21.3]} 48. Kxg5 {[%clk 0:02:08.2]} 48...
Rxg3+ {[%clk 0:02:22.8]} 49. Kf4 {[%clk 0:02:08.7]} 49... Rg8 {[%clk 0:02:16.8]}
50. Ra1 {[%clk 0:02:06.2]} 50... Rf8+ {[%clk 0:02:14.2]} 51. Kg3 {[%clk
0:02:05.6]} 51... Rh8 {[%clk 0:02:14.1]} 52. Rh1 {[%clk 0:02:05.4]} 52... Ke5
{[%clk 0:02:14.8]} 53. Rd1 {[%clk 0:02:03.4]} 53... h4+ {[%clk 0:02:13.4]} 54.
Kg4 {[%clk 0:02:01.8]} 54... Rf8 {[%clk 0:02:12]} 55. Rd5+ {[%clk 0:02:01.6]}
55... Ke6 {[%clk 0:02:12.6]} 56. Rh5 {[%clk 0:02:01.2]} 56... Rg8+ {[%clk
0:02:12.8]} 57. Kf4 {[%clk 0:02:00.3]} 57... Rf8+ {[%clk 0:02:10.3]} 58. Ke3
{[%clk 0:01:59.9]} 1/2-1/2

[Event "*** MasterClass Titled Tuesday Blitz"]
[Site "Chess.com"]
[Date "2017.09.05"]
[Round "1"]
[White "TrickyTrapChess"]
[Black "maciek_92"]
[Result "1-0"]
[WhiteElo "2275"]
[BlackElo "2515"]
[TimeControl "180+2"]
[EndTime "13:06:35 PDT"]
[Termination "TrickyTrapChess won by resignation"]

1. c4 {[%clk 0:03:01.3]} 1... e5 {[%clk 0:03:00.2]} 2. Nc3 {[%clk 0:03:01.6]}
2... Nc6 {[%clk 0:03:00.7]} 3. g3 {[%clk 0:02:57.6]} 3... Bc5 {[%clk 0:03:01.5]}
4. Bg2 {[%clk 0:02:52.6]} 4... a6 {[%clk 0:03:00.4]} 5. a3 {[%clk 0:02:51.6]}
5... d6 {[%clk 0:02:59.9]} 6. e3 {[%clk 0:02:51.4]} 6... Nge7 {[%clk 0:02:58.1]}
7. Nge2 {[%clk 0:02:51.8]} 7... O-O {[%clk 0:02:54.7]} 8. b4 {[%clk 0:02:50]}
8... Ba7 {[%clk 0:02:54.8]} 9. O-O {[%clk 0:02:49.9]} 9... Be6 {[%clk
0:02:54.4]} 10. d3 {[%clk 0:02:49.2]} 10... Rb8 {[%clk 0:02:43.3]} 11. Rb1
{[%clk 0:02:44.3]} 11... b5 {[%clk 0:02:36]} 12. cxb5 {[%clk 0:02:40.9]} 12...
axb5 {[%clk 0:02:37.9]} 13. a4 {[%clk 0:02:38.9]} 13... Bb6 {[%clk 0:01:34.5]}
14. a5 {[%clk 0:02:30.5]} 14... Ba7 {[%clk 0:01:34.8]} 15. d4 {[%clk 0:02:31.7]}
15... exd4 {[%clk 0:01:29.2]} 16. exd4 {[%clk 0:02:32.9]} 16... Bc4 {[%clk
0:01:30.8]} 17. Be3 {[%clk 0:02:31]} 17... d5 {[%clk 0:01:27.7]} 18. Re1 {[%clk
0:02:29.1]} 18... Nf5 {[%clk 0:01:23.1]} 19. Qd2 {[%clk 0:02:25.1]} 19... Nxe3
{[%clk 0:01:21.6]} 20. fxe3 {[%clk 0:02:22.9]} 20... Ne7 {[%clk 0:01:21]} 21.
Nf4 {[%clk 0:02:18.3]} 21... c6 {[%clk 0:01:21.2]} 22. Nd3 {[%clk 0:02:14]}
22... Nf5 {[%clk 0:01:16.4]} 23. Ne5 {[%clk 0:02:13.3]} 23... Rc8 {[%clk
0:01:10.8]} 24. Bh3 {[%clk 0:02:11.6]} 24... Qg5 {[%clk 0:01:04.5]} 25. Qf2
{[%clk 0:02:01.3]} 25... Nxe3 {[%clk 0:00:48.7]} 26. Bxc8 {[%clk 0:01:50.2]}
26... Rxc8 {[%clk 0:00:24.2]} 27. Qxf7+ {[%clk 0:01:46.9]} 27... Kh8 {[%clk
0:00:25.4]} 28. Qxa7 {[%clk 0:01:47.5]} 28... Qf5 {[%clk 0:00:07.6]} 29. Qf7
{[%clk 0:01:41.2]} 29... Rf8 {[%clk 0:00:08.3]} 30. Qxf5 {[%clk 0:01:39.3]}
30... Nxf5 {[%clk 0:00:10.2]} 31. Nxc4 {[%clk 0:01:39.3]} 1-0

[Event "*** MasterClass Titled Tuesday Blitz"]
[Site "Chess.com"]
[Date "2017.09.05"]
[Round "1"]
[White "Hafez_Bakr"]
[Black "The_Jagermeister"]
[Result "0-1"]
[WhiteElo "1859"]
[BlackElo "2420"]
[TimeControl "180+2"]
[EndTime "13:06:40 PDT"]
[Termination "The_Jagermeister won by resignation"]

1. c4 {[%clk 0:03:01.9]} 1... e6 {[%clk 0:02:59.2]} 2. Nc3 {[%clk 0:03:03.8]}
2... d5 {[%clk 0:02:53.8]} 3. e3 {[%clk 0:03:04.5]} 3... Nf6 {[%clk 0:02:53.5]}
4. d4 {[%clk 0:03:01.9]} 4... c6 {[%clk 0:02:53.6]} 5. Nf3 {[%clk 0:03:02.7]}
5... Nbd7 {[%clk 0:02:54.1]} 6. Bd3 {[%clk 0:03:03.3]} 6... dxc4 {[%clk
0:02:54.4]} 7. Bxc4 {[%clk 0:03:04.4]} 7... b5 {[%clk 0:02:56.7]} 8. Bd3 {[%clk
0:03:05.1]} 8... Bd6 {[%clk 0:02:58.9]} 9. O-O {[%clk 0:03:05.8]} 9... O-O
{[%clk 0:03:00]} 10. b3 {[%clk 0:03:03.7]} 10... Bb7 {[%clk 0:02:59.1]} 11. Bb2
{[%clk 0:03:04.1]} 11... a6 {[%clk 0:03:00]} 12. Rc1 {[%clk 0:03:04.7]} 12... c5
{[%clk 0:03:00]} 13. dxc5 {[%clk 0:03:01.8]} 13... Nxc5 {[%clk 0:02:59.5]} 14.
Bb1 {[%clk 0:03:02.2]} 14... Qe7 {[%clk 0:02:56]} 15. Qe2 {[%clk 0:03:03.2]}
15... b4 {[%clk 0:02:52.2]} 16. Na4 {[%clk 0:02:41.5]} 16... Nxa4 {[%clk
0:02:52.5]} 17. bxa4 {[%clk 0:02:42.3]} 17... a5 {[%clk 0:02:51.7]} 18. Bd3
{[%clk 0:02:38.6]} 18... Rfd8 {[%clk 0:02:49]} 19. Rfd1 {[%clk 0:02:38.9]} 19...
Nd5 {[%clk 0:02:43.4]} 20. Bb1 {[%clk 0:02:35.6]} 20... Ba6 {[%clk 0:02:37.6]}
21. Qc2 {[%clk 0:02:36.6]} 21... f5 {[%clk 0:02:35.7]} 22. Qb3 {[%clk
0:02:31.4]} 22... Bb7 {[%clk 0:02:11.4]} 23. Nd4 {[%clk 0:02:29.7]} 23... Qh4
{[%clk 0:02:02.2]} 24. Nf3 {[%clk 0:02:24.4]} 24... Qh5 {[%clk 0:02:01.6]} 25.
Be5 {[%clk 0:02:16.5]} 25... Bxe5 {[%clk 0:01:44.4]} 26. Nxe5 {[%clk 0:02:16.7]}
26... Rac8 {[%clk 0:01:32]} 27. Rxc8 {[%clk 0:02:11.1]} 27... Rxc8 {[%clk
0:01:30.4]} 28. f3 {[%clk 0:02:11.3]} 28... f4 {[%clk 0:01:27.2]} 29. e4 {[%clk
0:02:04.1]} 29... Qxe5 {[%clk 0:01:27.1]} 30. exd5 {[%clk 0:02:03.9]} 30... Bxd5
{[%clk 0:01:28.1]} 31. Qd3 {[%clk 0:02:04]} 31... Qe3+ {[%clk 0:01:20.1]} 32.
Qxe3 {[%clk 0:02:01]} 32... fxe3 {[%clk 0:01:22]} 33. Kf1 {[%clk 0:01:59.7]}
33... Rc3 {[%clk 0:01:20.1]} 34. Ke2 {[%clk 0:01:59.6]} 34... Ra3 {[%clk
0:01:17.4]} 35. Rc1 {[%clk 0:01:54.4]} 35... Bxa2 {[%clk 0:01:16.4]} 36. Bxa2
{[%clk 0:01:55]} 36... Rxa2+ {[%clk 0:01:17.3]} 37. Kxe3 {[%clk 0:01:56.5]}
37... Rxa4 {[%clk 0:01:18.3]} 38. Rc7 {[%clk 0:01:53.5]} 38... b3 {[%clk
0:01:17.3]} 39. Rb7 {[%clk 0:01:53.7]} 39... Ra3 {[%clk 0:01:17.3]} 40. Ke4
{[%clk 0:01:54.3]} 40... a4 {[%clk 0:01:17.3]} 41. g4 {[%clk 0:01:54.7]} 41...
Ra2 {[%clk 0:01:18.2]} 42. h4 {[%clk 0:01:55.1]} 42... b2 {[%clk 0:01:18.2]} 43.
Kd3 {[%clk 0:01:54.9]} 43... a3 {[%clk 0:01:18.9]} 44. Ke4 {[%clk 0:01:49.7]}
44... Ra1 {[%clk 0:01:19.7]} 45. Ke5 {[%clk 0:01:50.7]} 45... Re1+ {[%clk
0:01:19.5]} 46. Kd6 {[%clk 0:01:51.1]} 46... b1=Q {[%clk 0:01:19.9]} 0-1

[Event "*** MasterClass Titled Tuesday Blitz"]
[Site "Chess.com"]
[Date "2017.09.05"]
[Round "1"]
[White "blitzcopter"]
[Black "dhanushbharadwaj"]
[Result "0-1"]
[WhiteElo "2029"]
[BlackElo "2430"]
[TimeControl "180+2"]
[EndTime "13:06:42 PDT"]
[Termination "dhanushbharadwaj won by resignation"]

1. e4 {[%clk 0:02:49.2]} 1... c5 {[%clk 0:02:59.9]} 2. Nc3 {[%clk 0:02:44.9]}
2... Nc6 {[%clk 0:02:59.7]} 3. g3 {[%clk 0:02:45.1]} 3... g6 {[%clk 0:02:59.9]}
4. Bg2 {[%clk 0:02:46.5]} 4... Bg7 {[%clk 0:03:01.2]} 5. d3 {[%clk 0:02:48.5]}
5... d6 {[%clk 0:03:02.2]} 6. Be3 {[%clk 0:02:49.8]} 6... Nf6 {[%clk 0:03:03.2]}
7. h3 {[%clk 0:02:50.1]} 7... O-O {[%clk 0:03:03.6]} 8. f4 {[%clk 0:02:51.2]}
8... Rb8 {[%clk 0:03:03.9]} 9. Nf3 {[%clk 0:02:51.8]} 9... Nd7 {[%clk
0:03:04.3]} 10. O-O {[%clk 0:02:52.1]} 10... Nd4 {[%clk 0:03:05.5]} 11. Qd2
{[%clk 0:02:52.7]} 11... b5 {[%clk 0:03:06.2]} 12. Nd1 {[%clk 0:02:52.5]} 12...
Nb6 {[%clk 0:02:57.8]} 13. c3 {[%clk 0:02:52.5]} 13... Nxf3+ {[%clk 0:02:57]}
14. Rxf3 {[%clk 0:02:54.4]} 14... b4 {[%clk 0:02:57.9]} 15. f5 {[%clk
0:02:54.4]} 15... bxc3 {[%clk 0:02:59]} 16. bxc3 {[%clk 0:02:55.4]} 16... Na4
{[%clk 0:02:55.4]} 17. Bh6 {[%clk 0:02:53.5]} 17... Qb6 {[%clk 0:02:45.2]} 18.
Bxg7 {[%clk 0:02:52.4]} 18... Kxg7 {[%clk 0:02:45]} 19. Rc1 {[%clk 0:02:32.2]}
19... f6 {[%clk 0:02:38.4]} 20. Nf2 {[%clk 0:01:46.9]} 20... Qb2 {[%clk
0:02:31.7]} 21. Rc2 {[%clk 0:01:47.4]} 21... Qa1+ {[%clk 0:02:29]} 22. Kh2
{[%clk 0:01:38.5]} 22... Rb2 {[%clk 0:02:27.9]} 23. fxg6 {[%clk 0:01:19]} 23...
hxg6 {[%clk 0:02:26.1]} 24. Rxb2 {[%clk 0:01:17.6]} 24... Qxb2 {[%clk
0:02:26.4]} 25. Qxb2 {[%clk 0:01:18]} 25... Nxb2 {[%clk 0:02:28.3]} 26. Re3
{[%clk 0:01:12.3]} 26... Be6 {[%clk 0:02:24.2]} 27. Re2 {[%clk 0:01:10.6]} 27...
Rb8 {[%clk 0:02:21.5]} 28. Re1 {[%clk 0:01:02.3]} 28... Na4 {[%clk 0:02:05.8]}
29. c4 {[%clk 0:00:33.2]} 29... Rb2 {[%clk 0:02:03.7]} 30. Kg1 {[%clk
0:00:34.6]} 30... Rxa2 {[%clk 0:01:51.9]} 31. Rb1 {[%clk 0:00:34.5]} 31... Nc3
{[%clk 0:01:52.3]} 32. Rb7 {[%clk 0:00:34.2]} 32... Kf7 {[%clk 0:01:53.5]} 33.
Bf3 {[%clk 0:00:29.2]} 33... a5 {[%clk 0:01:49.7]} 34. Bg4 {[%clk 0:00:30.3]}
34... a4 {[%clk 0:01:48.8]} 35. Bxe6+ {[%clk 0:00:31.1]} 35... Kxe6 {[%clk
0:01:50.7]} 0-1

[Event "*** MasterClass Titled Tuesday Blitz"]
[Site "Chess.com"]
[Date "2017.09.05"]
[Round "1"]
[White "3f32"]
[Black "Noukii"]
[Result "0-1"]
[WhiteElo "2365"]
[BlackElo "2657"]
[TimeControl "180+2"]
[EndTime "13:07:06 PDT"]
[Termination "Noukii won by resignation"]

1. d4 {[%clk 0:02:00.1]} 1... Nf6 {[%clk 0:02:58.6]} 2. c4 {[%clk 0:02:00.5]}
2... c6 {[%clk 0:02:59.4]} 3. Nc3 {[%clk 0:01:59.8]} 3... d5 {[%clk 0:03:00.9]}
4. Nf3 {[%clk 0:02:01.3]} 4... a6 {[%clk 0:03:01.1]} 5. c5 {[%clk 0:02:01]} 5...
Bf5 {[%clk 0:03:00.2]} 6. Bf4 {[%clk 0:02:02.2]} 6... Nbd7 {[%clk 0:03:00.7]} 7.
h3 {[%clk 0:02:03.5]} 7... e6 {[%clk 0:03:01.4]} 8. e3 {[%clk 0:02:04.6]} 8...
Be7 {[%clk 0:03:02.4]} 9. Nh4 {[%clk 0:02:05]} 9... Be4 {[%clk 0:03:01.9]} 10.
Nxe4 {[%clk 0:02:02.9]} 10... dxe4 {[%clk 0:03:02.5]} 11. g4 {[%clk 0:02:02.9]}
11... Nd5 {[%clk 0:02:53]} 12. Ng2 {[%clk 0:02:03.3]} 12... e5 {[%clk
0:02:43.5]} 13. Bg3 {[%clk 0:01:55.4]} 13... exd4 {[%clk 0:02:29]} 14. exd4
{[%clk 0:01:54.6]} 14... O-O {[%clk 0:02:16.3]} 15. Ne3 {[%clk 0:01:55.3]} 15...
Nxe3 {[%clk 0:02:11.2]} 16. fxe3 {[%clk 0:01:57.2]} 16... Bh4 {[%clk 0:02:12.6]}
17. Kf2 {[%clk 0:01:56.3]} 17... f5 {[%clk 0:02:12.8]} 18. Bc4+ {[%clk
0:01:49.4]} 18... Kh8 {[%clk 0:02:13.6]} 19. Kg2 {[%clk 0:01:47.9]} 19... Bxg3
{[%clk 0:02:14.4]} 20. Kxg3 {[%clk 0:01:49]} 20... Qg5 {[%clk 0:02:16]} 21. Qd2
{[%clk 0:01:44.5]} 21... fxg4 {[%clk 0:02:15.7]} 22. h4 {[%clk 0:01:40.1]} 22...
Rf3+ {[%clk 0:02:16.1]} 23. Kg2 {[%clk 0:01:41.4]} 23... Qf5 {[%clk 0:02:11.8]}
24. Raf1 {[%clk 0:01:41.6]} 24... Rf8 {[%clk 0:02:11.8]} 25. h5 {[%clk 0:01:12]}
25... g3 {[%clk 0:01:58.9]} 26. h6 {[%clk 0:01:11.7]} 26... gxh6 {[%clk
0:01:57.3]} 27. b4 {[%clk 0:01:00.5]} 27... Nf6 {[%clk 0:01:46.7]} 28. Qe2
{[%clk 0:00:58.4]} 28... Ng4 {[%clk 0:01:43.5]} 29. d5 {[%clk 0:00:55]} 29...
cxd5 {[%clk 0:01:40.5]} 30. Bb3 {[%clk 0:00:48.6]} 30... Qg5 {[%clk 0:01:20.1]}
31. Qb2+ {[%clk 0:00:46.2]} 31... Kg8 {[%clk 0:01:20.3]} 32. Rxf3 {[%clk
0:00:38.1]} 32... Rxf3 {[%clk 0:01:12.8]} 33. Re1 {[%clk 0:00:26.5]} 33... Rf2+
{[%clk 0:01:12.6]} 0-1